[Event "Cracovia Festival-A 2023"]
[Site "Krakow"]
[Date "2023.12.27"]
[Round "1.7"]
[White "Soffer, Ram"]
[Black "Gierulski, Kamil"]
[Result "1-0"]
[ECO "A13"]
[WhiteElo "2444"]
[BlackElo "2223"]
[Annotator "RC"]
[PlyCount "105"]
[EventDate "2023.12.24"]
[EventType "swiss"]
[EventCountry "POL"]
[SourceTitle "playchess.com"]
[Source "ChessBase"]
[SourceQuality "1"]
[TimeControl "40/5400+30:1800+30"]

1. c4 {[%emt 0:00:10]} e6 {[%emt 0:00:03]} 2. Nf3 {[%emt 0:00:20]} d5 {[%emt 0:00:07]} 3. g3 {[%emt 0:00:25]} dxc4 {[%emt 0:00:15]} 4. Bg2 {[%emt 0:01:06]} Nd7 {[%emt 0:00:22]} 5. O-O {[%emt 0:03:07]} a6 {[%emt 0:00:46]} 6. Qc2 {[%emt 0:02:05]} Ngf6 {[%emt 0:00:17]} 7. a4 {[%emt 0:02:01]} Be7 {[%emt 0:07:06]} 8. Na3 {[%emt 0:02:36]} O-O {[%emt 0:05:17]} 9. Nxc4 {[%emt 0:00:41]} c5 {[%emt 0:06:41]} 10. a5 {[%emt 0:09:18]} Nd5 {[%emt 0:03:07]} 11. d4 {[%emt 0:02:31]} b5 {[%emt 0:05:30]} 12. axb6 {[%emt 0:02:13]} Bb7 {[%emt 0:01:41]} 13. dxc5 {[%emt 0:09:08]} Rc8 {[%emt 0:04:27]} 14. e4 {[%emt 0:11:00]} Rxc5 {[%emt 0:12:20]} 15. exd5 {[%emt 0:00:42]} exd5 {[%emt 0:00:04]} 16. Nfd2 {[%emt 0:01:05]} Nxb6 {[%emt 0:03:06]} 17. b3 {[%emt 0:00:40]} Rc7 {[%emt 0:03:25]} 18. Rd1 {[%emt 0:10:30]} Nd7 {[%emt 0:02:03]} 19. Qf5 {[%emt 0:05:14]} dxc4 {[%emt 0:00:08]} 20. Bxb7 {[%emt 0:00:28]} Rxb7 {[%emt 0:00:06]} 21. Nxc4 {[%emt 0:00:08]} g6 {[%emt 0:08:45]} 22. Qf3 {[%emt 0:00:58]} Qc8 {[%emt 0:04:00]} 23. Bh6 {[%emt 0:06:09]} Re8 {[%emt 0:02:02]} 24. Rxa6 {[%emt 0:03:07]} Nc5 {[%emt 0:03:58]} 25. Nd6 {[%emt 0:05:57]} Bxd6 {[%emt 0:00:15]} 26. Raxd6 {[%emt 0:00:04]} Ne4 {[%emt 0:04:52]} 27. R6d4 {[%emt 0:02:34]} f5 {[%emt 0:00:59]} 28. Rc4 {[%emt 0:04:20]} Qe6 {[%emt 0:01:25]} 29. h4 {[%emt 0:02:48]} Reb8 {[%emt 0:04:35]} 30. Rd3 {[%emt 0:00:30]} Nd6 {[%emt 0:01:59]} 31. Rc6 {[%emt 0:03:15]} Qe1+ {[%emt 0:00:25]} 32. Kg2 {[%emt 0:00:36]} Ne4 {[%emt 0:01:43]} 33. h5 {[%emt 0:01:59]} Rb6 {[%emt 0:04:27]} 34. Rxb6 {[%emt 0:03:21]} Rxb6 {[%emt 0:00:03]} 35. Qf4 {[%emt 0:00:45]} Rb7 {[%emt 0:01:46]} 36. Re3 {[%emt 0:00:44]} Qb4 {[%emt 0:03:27]} 37. Qe5 {[%emt 0:00:24]} Kf7 {[%emt 0:01:09]} 38. Qd5+ {[%emt 0:02:24]} Kf6 {[%emt 0:00:25]} 39. Qd8+ {[%emt 0:01:04]} Kf7 {[%emt 0:01:40]} 40. Qd5+ {[%emt 0:00:00]} Kf6 {[%emt 0:00:00]} 41. Bf8 {[%emt 0:09:19]} Qb5 {[%emt 0:07:46]} 42. Qd4+ {[%emt 0:00:41]} Qe5 {[%emt 0:01:45]} 43. Qd8+ {[%emt 0:00:26]} Kf7 {[%emt 0:00:22]} 44. hxg6+ {[%emt 0:04:57]} Kxg6 {[%emt 0:00:57]} 45. Ba3 {[%emt 0:04:45]} Qe6 {[%emt 0:05:08]} 46. f3 {[%emt 0:03:13]} Rxb3 {[%emt 0:16:43]} 47. Rxb3 {[%emt 0:00:13]} Qxb3 {[%emt 0:00:06]} 48. Qe8+ {[%emt 0:00:13]} Kg5 {[%emt 0:00:40]} 49. Qe7+ {[%emt 0:03:47]} Nf6 {[%emt 0:00:55]} 50. Qg7+ {[%emt 0:00:10]} Kh5 {[%emt 0:00:06]} 51. Qxf6 {[%emt 0:00:09]} Qxa3 {[%emt 0:00:08]} 52. Qxf5+ {[%emt 0:00:04]} Kh6 {[%emt 0:00:05]} 53. Qf6+ {[%emt 0:00:05]} 1-0

[Event "Cracovia Festival-A 2023"]
[Site "Krakow"]
[Date "2023.12.27"]
[Round "1.8"]
[White "Jaskolka, Tomasz"]
[Black "Kozak, Antoni"]
[Result "0-1"]
[ECO "B08"]
[WhiteElo "2222"]
[BlackElo "2442"]
[Annotator "RC"]
[PlyCount "136"]
[EventDate "2023.12.24"]
[EventType "swiss"]
[EventCountry "POL"]
[SourceTitle "playchess.com"]
[Source "ChessBase"]
[SourceQuality "1"]
[TimeControl "40/5400+30:1800+30"]

1. e4 {[%emt 0:00:04]} g6 {[%emt 0:00:51]} 2. d4 {[%emt 0:00:27]} Bg7 {[%emt 0:00:13]} 3. Nf3 {[%emt 0:00:33]} d6 {[%emt 0:00:33]} 4. Nc3 {[%emt 0:01:37]} Nf6 {[%emt 0:00:55]} 5. Bg5 {[%emt 0:00:43]} Nc6 {[%emt 0:08:25]} 6. h3 {[%emt 0:07:55]} O-O {[%emt 0:08:56]} 7. Qd2 {[%emt 0:06:00]} d5 {[%emt 0:01:32]} 8. Bxf6 {[%emt 0:20:57]} exf6 {[%emt 0:00:37]} 9. exd5 {[%emt 0:00:25]} Ne7 {[%emt 0:02:20]} 10. Bc4 {[%emt 0:02:28]} b6 {[%emt 0:01:16]} 11. O-O {[%emt 0:03:10]} Bb7 {[%emt 0:00:16]} 12. Rfe1 {[%emt 0:01:09]} Nxd5 {[%emt 0:00:55]} 13. Nxd5 {[%emt 0:02:28]} Bxd5 {[%emt 0:00:07]} 14. Bxd5 {[%emt 0:01:20]} Qxd5 {[%emt 0:00:09]} 15. Re7 {[%emt 0:02:35]} Qd6 {[%emt 0:03:22]} 16. Rae1 {[%emt 0:00:52]} f5 {[%emt 0:00:46]} 17. c3 {[%emt 0:09:55]} Bf6 {[%emt 0:00:45]} 18. R7e2 {[%emt 0:00:09]} Kg7 {[%emt 0:00:57]} 19. Qc2 {[%emt 0:04:31]} a5 {[%emt 0:06:32]} 20. Qa4 {[%emt 0:01:41]} Qd5 {[%emt 0:09:05]} 21. c4 {[%emt 0:04:23]} Qd6 {[%emt 0:00:48]} 22. d5 {[%emt 0:00:32]} Rfb8 {[%emt 0:03:25]} 23. Qc2 {[%emt 0:09:55]} b5 {[%emt 0:02:52]} 24. Ne5 {[%emt 0:01:26]} bxc4 {[%emt 0:01:29]} 25. Qxc4 {[%emt 0:00:15]} Rb4 {[%emt 0:04:27]} 26. Qc6 {[%emt 0:02:11]} Rd8 {[%emt 0:01:49]} 27. b3 {[%emt 0:03:44]} Rd4 {[%emt 0:03:51]} 28. Nc4 {[%emt 0:00:05]} Qxc6 {[%emt 0:02:45]} 29. dxc6 {[%emt 0:00:04]} a4 {[%emt 0:00:10]} 30. Re8 {[%emt 0:01:27]} Rxe8 {[%emt 0:05:11]} 31. Rxe8 {[%emt 0:01:22]} Rd1+ {[%emt 0:01:32]} 32. Kh2 {[%emt 0:00:03]} Ra1 {[%emt 0:00:15]} 33. Re2 {[%emt 0:06:56]} axb3 {[%emt 0:00:56]} 34. axb3 {[%emt 0:00:03]} Ra6 {[%emt 0:00:05]} 35. Re8 {[%emt 0:02:47]} Rxc6 {[%emt 0:00:38]} 36. Rc8 {[%emt 0:00:27]} h5 {[%emt 0:00:36]} 37. Kg3 {[%emt 0:00:28]} Be7 {[%emt 0:09:39]} 38. Kf3 {[%emt 0:00:38]} Kf6 {[%emt 0:00:10]} 39. Ke2 {[%emt 0:02:16]} Ke6 {[%emt 0:00:13]} 40. Rb8 {[%emt 0:00:00]} Ra6 {[%emt 0:00:00]} 41. f4 {[%emt 0:10:20]} Ra2+ {[%emt 0:10:56]} 42. Kf3 {[%emt 0:00:14]} Bc5 {[%emt 0:02:33]} 43. Ne5 {[%emt 0:05:47]} Rf2+ {[%emt 0:11:39]} 44. Kg3 {[%emt 0:00:04]} h4+ {[%emt 0:00:05]} 45. Kh2 {[%emt 0:00:07]} Bd6 {[%emt 0:01:48]} 46. Re8+ {[%emt 0:08:04]} Kd5 {[%emt 0:01:13]} 47. Rd8 {[%emt 0:04:56]} Ke4 {[%emt 0:03:06]} 48. Kg1 {[%emt 0:01:22]} Rb2 {[%emt 0:06:10]} 49. Nc4 {[%emt 0:03:48]} Rb1+ {[%emt 0:02:41]} 50. Kf2 {[%emt 0:00:07]} Bxf4 {[%emt 0:01:40]} 51. Re8+ {[%emt 0:00:55]} Kd4 {[%emt 0:00:41]} 52. Rd8+ {[%emt 0:01:41]} Kc3 {[%emt 0:01:33]} 53. Rd7 {[%emt 0:00:56]} Bg3+ {[%emt 0:00:19]} 54. Ke3 {[%emt 0:00:28]} Re1+ {[%emt 0:00:44]} 55. Kf3 {[%emt 0:00:03]} Rf1+ {[%emt 0:00:40]} 56. Ke3 {[%emt 0:00:05]} f4+ {[%emt 0:04:24]} 57. Ke2 {[%emt 0:01:28]} Rf2+ {[%emt 0:00:58]} 58. Kd1 {[%emt 0:00:04]} Rxg2 {[%emt 0:00:20]} 59. Nd2 {[%emt 0:00:51]} Rg1+ {[%emt 0:01:03]} 60. Ke2 {[%emt 0:00:05]} Re1+ {[%emt 0:00:26]} 61. Kf3 {[%emt 0:00:04]} f5 {[%emt 0:00:53]} 62. Nc4 {[%emt 0:01:14]} Rf1+ {[%emt 0:00:13]} 63. Kg2 {[%emt 0:00:33]} Rf2+ {[%emt 0:00:04]} 64. Kg1 {[%emt 0:00:06]} Re2 {[%emt 0:01:22]} 65. Na3 {[%emt 0:01:05]} f3 {[%emt 0:00:34]} 66. Nb1+ {[%emt 0:00:28]} Kc2 {[%emt 0:00:24]} 67. Na3+ {[%emt 0:00:08]} Kc1 {[%emt 0:00:07]} 68. Kf1 {[%emt 0:00:36]} Re1# 0-1

[Event "Cracovia Festival-A 2023"]
[Site "Krakow"]
[Date "2023.12.27"]
[Round "1.9"]
[White "Janzelj, Tim"]
[Black "Wojdak, Jan"]
[Result "1/2-1/2"]
[ECO "B22"]
[WhiteElo "2441"]
[BlackElo "2219"]
[Annotator "RC"]
[PlyCount "137"]
[EventDate "2023.12.24"]
[EventType "swiss"]
[EventCountry "POL"]
[SourceTitle "playchess.com"]
[Source "ChessBase"]
[SourceQuality "1"]
[TimeControl "40/5400+30:1800+30"]

1. e4 {[%emt 0:00:06]} c5 {[%emt 0:00:12]} 2. c3 {[%emt 0:00:08]} d5 {[%emt 0:00:23]} 3. exd5 {[%emt 0:00:12]} Qxd5 {[%emt 0:00:06]} 4. d4 {[%emt 0:00:09]} Nf6 {[%emt 0:00:30]} 5. Nf3 {[%emt 0:00:14]} e6 {[%emt 0:00:25]} 6. Be3 {[%emt 0:01:02]} cxd4 {[%emt 0:01:09]} 7. cxd4 {[%emt 0:00:21]} Bb4+ {[%emt 0:01:28]} 8. Nc3 {[%emt 0:00:09]} Qa5 {[%emt 0:03:05]} 9. Bd2 {[%emt 0:02:40]} O-O {[%emt 0:02:56]} 10. Bd3 {[%emt 0:00:29]} Nc6 {[%emt 0:01:17]} 11. O-O {[%emt 0:02:35]} Rd8 {[%emt 0:13:17]} 12. a3 {[%emt 0:09:10]} Be7 {[%emt 0:01:46]} 13. b4 {[%emt 0:17:27]} Qc7 {[%emt 0:09:39]} 14. Rc1 {[%emt 0:01:53]} a6 {[%emt 0:25:01]} 15. Qe2 {[%emt 0:02:58]} Qd7 {[%emt 0:04:51]} 16. Be3 {[%emt 0:10:17]} e5 {[%emt 0:08:30]} 17. Rfd1 {[%emt 0:01:21]} exd4 {[%emt 0:01:37]} 18. Nxd4 {[%emt 0:00:34]} Nxd4 {[%emt 0:00:20]} 19. Bxd4 {[%emt 0:00:06]} Qe6 {[%emt 0:01:33]} 20. Be3 {[%emt 0:07:39]} Bd7 {[%emt 0:01:25]} 21. Bc4 {[%emt 0:00:24]} Qg4 {[%emt 0:02:21]} 22. f3 {[%emt 0:10:21]} Qg6 {[%emt 0:00:44]} 23. Nd5 {[%emt 0:00:15]} Nxd5 {[%emt 0:01:19]} 24. Bxd5 {[%emt 0:00:02]} Ba4 {[%emt 0:07:31]} 25. Rd4 {[%emt 0:02:02]} Rd7 {[%emt 0:00:09]} 26. Be4 {[%emt 0:11:01]} Qe6 {[%emt 0:00:37]} 27. Rxd7 {[%emt 0:01:27]} Qxd7 {[%emt 0:00:05]} 28. Qc4 {[%emt 0:00:06]} Bd6 {[%emt 0:06:07]} 29. Qd3 {[%emt 0:03:53]} h6 {[%emt 0:00:38]} 30. Bf2 {[%emt 0:09:36]} Rd8 {[%emt 0:00:35]} 31. g3 {[%emt 0:03:11]} Qe7 {[%emt 0:01:45]} 32. Re1 {[%emt 0:00:34]} Qc7 {[%emt 0:00:27]} 33. Qe3 {[%emt 0:00:26]} Re8 {[%emt 0:01:26]} 34. Rc1 {[%emt 0:00:54]} Bc6 {[%emt 0:02:14]} 35. Qd2 {[%emt 0:01:20]} Rd8 {[%emt 0:00:47]} 36. Qe3 {[%emt 0:01:05]} Re8 {[%emt 0:00:31]} 37. Qa7 {[%emt 0:00:18]} Rxe4 {[%emt 0:01:36]} 38. fxe4 {[%emt 0:00:15]} Qe7 {[%emt 0:00:09]} 39. Rxc6 {[%emt 0:00:45]} bxc6 {[%emt 0:00:04]} 40. Qa8+ {[%emt 0:00:00]} Kh7 {[%emt 0:00:00]} 41. Qxc6 {[%emt 0:00:18]} Bb8 {[%emt 0:04:21]} 42. Qa8 {[%emt 0:01:29]} Qe8 {[%emt 0:05:24]} 43. Qb7 {[%emt 0:01:58]} f6 {[%emt 0:01:57]} 44. a4 {[%emt 0:00:13]} Bd6 {[%emt 0:01:10]} 45. b5 {[%emt 0:04:29]} axb5 {[%emt 0:00:06]} 46. a5 {[%emt 0:02:18]} Qe5 {[%emt 0:01:33]} 47. a6 {[%emt 0:00:11]} Bc5 {[%emt 0:00:12]} 48. Bxc5 {[%emt 0:09:16]} Qxc5+ {[%emt 0:00:05]} 49. Kg2 {[%emt 0:00:07]} Qc2+ {[%emt 0:06:19]} 50. Kh3 {[%emt 0:00:02]} Qe2 {[%emt 0:01:02]} 51. Qd5 {[%emt 0:01:49]} h5 {[%emt 0:06:39]} 52. Qf5+ {[%emt 0:00:32]} g6 {[%emt 0:00:10]} 53. Qxf6 {[%emt 0:05:20]} Qg4+ {[%emt 0:00:03]} 54. Kg2 {[%emt 0:00:01]} Qxe4+ {[%emt 0:00:24]} 55. Kf2 {[%emt 0:00:01]} Qc2+ {[%emt 0:00:22]} 56. Ke3 {[%emt 0:00:32]} Qb3+ {[%emt 0:04:53]} 57. Ke4 {[%emt 0:00:12]} Qc4+ {[%emt 0:00:36]} 58. Ke5 {[%emt 0:00:53]} Qc5+ {[%emt 0:01:47]} 59. Ke6 {[%emt 0:00:30]} Qb6+ {[%emt 0:01:24]} 60. Kf7 {[%emt 0:08:25]} Qa7+ {[%emt 0:01:02]} 61. Ke8 {[%emt 0:03:07]} Qa8+ {[%emt 0:00:13]} 62. Kd7 {[%emt 0:00:12]} Qa7+ {[%emt 0:00:12]} 63. Kc8 {[%emt 0:00:12]} Qa8+ {[%emt 0:00:08]} 64. Kc7 {[%emt 0:00:09]} Qa7+ {[%emt 0:00:05]} 65. Kd8 {[%emt 0:00:07]} Qa8+ {[%emt 0:00:07]} 66. Ke7 {[%emt 0:00:05]} Qa7+ {[%emt 0:00:12]} 67. Ke8 {[%emt 0:00:11]} Qa8+ {[%emt 0:00:12]} 68. Kf7 {[%emt 0:00:42]} Qa7+ {[%emt 0:00:19]} 69. Ke8 {[%emt 0:03:09]} 1/2-1/2

[Event "Cracovia Festival-A 2023"]
[Site "Krakow"]
[Date "2023.12.27"]
[Round "1.10"]
[White "Meers, Hubert"]
[Black "Golubka, Petro"]
[Result "1/2-1/2"]
[ECO "A04"]
[WhiteElo "2218"]
[BlackElo "2440"]
[Annotator "RC"]
[PlyCount "80"]
[EventDate "2023.12.24"]
[EventType "swiss"]
[EventCountry "POL"]
[SourceTitle "playchess.com"]
[Source "ChessBase"]
[SourceQuality "1"]
[TimeControl "40/5400+30:1800+30"]

1. Nf3 {[%emt 0:00:02]} e6 {[%emt 0:18:03]} 2. b3 {[%emt 0:00:11]} b6 {[%emt 0:00:16]} 3. Bb2 {[%emt 0:00:06]} Bb7 {[%emt 0:00:05]} 4. e3 {[%emt 0:00:17]} f5 {[%emt 0:00:18]} 5. Be2 {[%emt 0:00:06]} Nf6 {[%emt 0:00:47]} 6. O-O {[%emt 0:00:34]} Be7 {[%emt 0:00:12]} 7. c4 {[%emt 0:00:25]} O-O {[%emt 0:00:11]} 8. Nc3 {[%emt 0:00:19]} a5 {[%emt 0:00:25]} 9. d4 {[%emt 0:00:43]} Na6 {[%emt 0:00:13]} 10. a3 {[%emt 0:03:13]} d5 {[%emt 0:00:36]} 11. Ne5 {[%emt 0:06:52]} c6 {[%emt 0:03:22]} 12. Qc2 {[%emt 0:07:08]} Rc8 {[%emt 0:00:43]} 13. Rac1 {[%emt 0:02:16]} Bd6 {[%emt 0:01:00]} 14. f4 {[%emt 0:04:35]} c5 {[%emt 0:01:19]} 15. Rfd1 {[%emt 0:03:53]} Qe7 {[%emt 0:07:02]} 16. Na4 {[%emt 0:05:35]} Bc7 {[%emt 0:01:05]} 17. Qb1 {[%emt 0:05:57]} cxd4 {[%emt 0:09:12]} 18. exd4 {[%emt 0:00:34]} Ne4 {[%emt 0:00:45]} 19. cxd5 {[%emt 0:03:18]} exd5 {[%emt 0:04:30]} 20. Nc3 {[%emt 0:04:18]} Bxe5 {[%emt 0:03:00]} 21. fxe5 {[%emt 0:04:16]} Nc7 {[%emt 0:00:45]} 22. Nxe4 {[%emt 0:02:04]} dxe4 {[%emt 0:01:55]} 23. Rxc7 {[%emt 0:14:51]} Qxc7 {[%emt 0:09:29]} 24. Bc4+ {[%emt 0:02:38]} Kh8 {[%emt 0:00:07]} 25. d5 {[%emt 0:02:57]} b5 {[%emt 0:00:14]} 26. d6 {[%emt 0:00:06]} Qc6 {[%emt 0:06:40]} 27. d7 {[%emt 0:01:59]} bxc4 {[%emt 0:05:18]} 28. dxc8=Q {[%emt 0:01:14]} Bxc8 {[%emt 0:00:30]} 29. Rd6 {[%emt 0:06:09]} Qb5 {[%emt 0:03:01]} 30. Qc1 {[%emt 0:00:03]} Kg8 {[%emt 0:09:00]} 31. bxc4 {[%emt 0:03:47]} Qc5+ {[%emt 0:03:06]} 32. Bd4 {[%emt 0:00:04]} Qc7 {[%emt 0:00:06]} 33. Qg5 {[%emt 0:06:14]} h6 {[%emt 0:00:21]} 34. Rxh6 {[%emt 0:01:07]} Qxc4 {[%emt 0:00:42]} 35. Rd6 {[%emt 0:00:14]} f4 {[%emt 0:01:47]} 36. h4 {[%emt 0:03:23]} Be6 {[%emt 0:01:34]} 37. Qe7 {[%emt 0:01:16]} Bd5 {[%emt 0:01:05]} 38. Qa7 {[%emt 0:01:27]} Be6 {[%emt 0:05:11]} 39. Qe7 {[%emt 0:00:51]} Bd5 {[%emt 0:00:09]} 40. Qa7 {[%emt 0:00:00]} Be6 {[%emt 0:00:00]} 1/2-1/2

[Event "Cracovia Festival-A 2023"]
[Site "Krakow"]
[Date "2023.12.27"]
[Round "1.11"]
[White "Sofronie, Iulian"]
[Black "Eke, Salih"]
[Result "1-0"]
[ECO "D00"]
[WhiteElo "2438"]
[BlackElo "2217"]
[Annotator "RC"]
[PlyCount "107"]
[EventDate "2023.12.24"]
[EventType "swiss"]
[EventCountry "POL"]
[SourceTitle "playchess.com"]
[Source "ChessBase"]
[SourceQuality "1"]
[TimeControl "40/5400+30:1800+30"]

1. d4 {[%emt 0:00:03]} d5 {[%emt 0:03:20]} 2. Bf4 {[%emt 0:00:01]} c5 {[%emt 0:00:56]} 3. e3 {[%emt 0:00:06]} Nf6 {[%emt 0:00:06]} 4. c3 {[%emt 0:02:46]} Nc6 {[%emt 0:02:33]} 5. Nd2 {[%emt 0:01:28]} Bf5 {[%emt 0:02:12]} 6. Ngf3 {[%emt 0:00:50]} Qb6 {[%emt 0:00:31]} 7. Nh4 {[%emt 0:01:09]} Bd7 {[%emt 0:01:30]} 8. Qb3 {[%emt 0:16:03]} c4 {[%emt 0:06:12]} 9. Qc2 {[%emt 0:03:05]} Qa5 {[%emt 0:12:05]} 10. Nhf3 {[%emt 0:18:12]} b5 {[%emt 0:27:09]} 11. e4 {[%emt 0:10:21]} g6 {[%emt 0:04:47]} 12. Be5 {[%emt 0:16:14]} Nxe5 {[%emt 0:03:37]} 13. Nxe5 {[%emt 0:00:41]} Be6 {[%emt 0:13:15]} 14. b4 {[%emt 0:03:42]} Qa3 {[%emt 0:03:12]} 15. g3 {[%emt 0:01:09]} Nxe4 {[%emt 0:05:02]} 16. Nxe4 {[%emt 0:00:07]} dxe4 {[%emt 0:00:05]} 17. Bg2 {[%emt 0:00:10]} Bd5 {[%emt 0:01:21]} 18. Bxe4 {[%emt 0:00:25]} Rd8 {[%emt 0:04:02]} 19. O-O {[%emt 0:00:20]} Bg7 {[%emt 0:00:05]} 20. Nc6 {[%emt 0:01:38]} Bxe4 {[%emt 0:01:38]} 21. Qxe4 {[%emt 0:00:05]} Rd7 {[%emt 0:00:09]} 22. Ne5 {[%emt 0:12:17]} Bxe5 {[%emt 0:02:09]} 23. Qxe5 {[%emt 0:00:04]} O-O {[%emt 0:00:43]} 24. Qxb5 {[%emt 0:00:03]} Rc7 {[%emt 0:01:31]} 25. Rfc1 {[%emt 0:00:44]} Rfc8 {[%emt 0:02:13]} 26. Rc2 {[%emt 0:01:07]} e6 {[%emt 0:01:36]} 27. Re1 {[%emt 0:00:39]} a6 {[%emt 0:00:40]} 28. Qg5 {[%emt 0:00:51]} a5 {[%emt 0:00:47]} 29. bxa5 {[%emt 0:04:23]} Ra7 {[%emt 0:00:12]} 30. Re5 {[%emt 0:00:31]} Rca8 {[%emt 0:00:43]} 31. d5 {[%emt 0:02:40]} exd5 {[%emt 0:00:28]} 32. Rxd5 {[%emt 0:00:06]} Rxa5 {[%emt 0:01:00]} 33. Rd8+ {[%emt 0:00:11]} Kg7 {[%emt 0:00:05]} 34. Rxa8 {[%emt 0:00:15]} Rxa8 {[%emt 0:00:10]} 35. Qf4 {[%emt 0:00:36]} Qa4 {[%emt 0:00:29]} 36. Rd2 {[%emt 0:00:18]} Re8 {[%emt 0:00:01]} 37. Kg2 {[%emt 0:00:54]} Qc6+ {[%emt 0:01:51]} 38. Qf3 {[%emt 0:00:07]} Qxf3+ {[%emt 0:00:30]} 39. Kxf3 {[%emt 0:00:06]} Kf6 {[%emt 0:00:20]} 40. a4 {[%emt 0:00:00]} Ra8 {[%emt 0:00:00]} 41. Ra2 {[%emt 0:02:07]} Ke5 {[%emt 0:01:30]} 42. a5 {[%emt 0:00:45]} Ra6 {[%emt 0:00:37]} 43. h4 {[%emt 0:02:01]} h5 {[%emt 0:02:57]} 44. Ke3 {[%emt 0:01:11]} Kd5 {[%emt 0:09:22]} 45. f3 {[%emt 0:00:25]} Kc5 {[%emt 0:01:21]} 46. g4 {[%emt 0:00:35]} Kb5 {[%emt 0:05:11]} 47. Kf4 {[%emt 0:02:52]} f6 {[%emt 0:06:07]} 48. gxh5 {[%emt 0:00:31]} gxh5 {[%emt 0:00:05]} 49. Kf5 {[%emt 0:00:18]} Kc5 {[%emt 0:03:36]} 50. Kg6 {[%emt 0:00:28]} Ra8 {[%emt 0:03:52]} 51. a6 {[%emt 0:00:37]} Kb6 {[%emt 0:00:02]} 52. a7 {[%emt 0:00:17]} Kb7 {[%emt 0:00:04]} 53. f4 {[%emt 0:00:21]} Rg8+ {[%emt 0:00:10]} 54. Kf7 {[%emt 0:00:07]} 1-0

[Event "Cracovia Festival-A 2023"]
[Site "Krakow"]
[Date "2023.12.27"]
[Round "1.12"]
[White "Fishchuk, Vladyslav"]
[Black "Pajeken, Jakob Leon"]
[Result "1/2-1/2"]
[ECO "E10"]
[WhiteElo "2198"]
[BlackElo "2428"]
[Annotator "RC"]
[PlyCount "39"]
[EventDate "2023.12.24"]
[EventType "swiss"]
[EventCountry "POL"]
[SourceTitle "playchess.com"]
[Source "ChessBase"]
[SourceQuality "1"]
[TimeControl "40/5400+30:1800+30"]

1. d4 {[%emt 0:00:06]} Nf6 {[%emt 0:00:11]} 2. c4 {[%emt 0:00:11]} e6 {[%emt 0:00:05]} 3. Nf3 {[%emt 0:00:08]} d5 {[%emt 0:00:28]} 4. g3 {[%emt 0:00:08]} Bb4+ {[%emt 0:00:11]} 5. Bd2 {[%emt 0:00:07]} Bd6 {[%emt 0:00:03]} 6. Bg2 {[%emt 0:00:09]} Nbd7 {[%emt 0:00:21]} 7. c5 {[%emt 0:04:24]} Be7 {[%emt 0:00:19]} 8. Nc3 {[%emt 0:00:24]} Ne4 {[%emt 0:03:58]} 9. Bf4 {[%emt 0:06:32]} Nxc3 {[%emt 0:09:21]} 10. bxc3 {[%emt 0:00:04]} c6 {[%emt 0:00:57]} 11. Qa4 {[%emt 0:01:17]} f6 {[%emt 0:05:39]} 12. O-O {[%emt 0:10:36]} e5 {[%emt 0:03:15]} 13. dxe5 {[%emt 0:02:47]} Nxc5 {[%emt 0:01:03]} 14. Qc2 {[%emt 0:00:36]} O-O {[%emt 0:03:07]} 15. c4 {[%emt 0:02:11]} fxe5 {[%emt 0:19:59]} 16. Bxe5 {[%emt 0:04:12]} Bf5 {[%emt 0:02:41]} 17. Qc3 {[%emt 0:05:08]} Na4 {[%emt 0:07:15]} 18. Qb3 {[%emt 0:00:33]} Nc5 {[%emt 0:02:07]} 19. Qc3 {[%emt 0:00:07]} Na4 {[%emt 0:03:21]} 20. Qb3 {[%emt 0:00:07]} 1/2-1/2

[Event "Cracovia Festival-A 2023"]
[Site "Krakow"]
[Date "2023.12.27"]
[Round "1.13"]
[White "Pacan-Milej, Kosma"]
[Black "Hryharovich, Aliaksei"]
[Result "1/2-1/2"]
[ECO "D31"]
[WhiteElo "2425"]
[BlackElo "2195"]
[Annotator "RC"]
[PlyCount "117"]
[EventDate "2023.12.24"]
[EventType "swiss"]
[EventCountry "POL"]
[SourceTitle "playchess.com"]
[Source "ChessBase"]
[SourceQuality "1"]
[TimeControl "40/5400+30:1800+30"]

1. d4 {[%emt 0:00:13]} d5 {[%emt 0:00:13]} 2. c4 {[%emt 0:00:17]} e6 {[%emt 0:00:22]} 3. Nc3 {[%emt 0:00:07]} Be7 {[%emt 0:00:08]} 4. cxd5 {[%emt 0:00:43]} exd5 {[%emt 0:00:12]} 5. Bf4 {[%emt 0:00:18]} c6 {[%emt 0:00:22]} 6. Qc2 {[%emt 0:04:46]} g6 {[%emt 0:09:01]} 7. e3 {[%emt 0:00:20]} Bf5 {[%emt 0:00:41]} 8. Qd2 {[%emt 0:00:48]} Nf6 {[%emt 0:02:17]} 9. f3 {[%emt 0:00:23]} O-O {[%emt 0:15:36]} 10. g4 {[%emt 0:08:05]} Be6 {[%emt 0:00:07]} 11. Bd3 {[%emt 0:00:16]} c5 {[%emt 0:02:17]} 12. Nge2 {[%emt 0:02:11]} Nc6 {[%emt 0:02:09]} 13. Kf1 {[%emt 0:07:52]} Rc8 {[%emt 0:07:54]} 14. Kg2 {[%emt 0:04:58]} a6 {[%emt 0:09:51]} 15. Rac1 {[%emt 0:08:19]} cxd4 {[%emt 0:05:38]} 16. exd4 {[%emt 0:04:02]} b5 {[%emt 0:01:38]} 17. h4 {[%emt 0:07:33]} h5 {[%emt 0:10:11]} 18. gxh5 {[%emt 0:23:44]} Nxh5 {[%emt 0:00:21]} 19. Ng3 {[%emt 0:02:05]} Nxf4+ {[%emt 0:03:28]} 20. Qxf4 {[%emt 0:00:06]} Bd6 {[%emt 0:01:05]} 21. Qh6 {[%emt 0:03:53]} Qf6 {[%emt 0:00:43]} 22. Nh5 {[%emt 0:04:08]} Qh8 {[%emt 0:00:58]} 23. Qxh8+ {[%emt 0:00:19]} Kxh8 {[%emt 0:00:11]} 24. Nf6 {[%emt 0:00:07]} Nxd4 {[%emt 0:11:38]} 25. h5 {[%emt 0:05:21]} g5 {[%emt 0:00:10]} 26. Ncxd5 {[%emt 0:00:32]} Rxc1 {[%emt 0:03:35]} 27. Rxc1 {[%emt 0:00:03]} Rd8 {[%emt 0:00:36]} 28. Re1 {[%emt 0:06:05]} Bf8 {[%emt 0:12:03]} 29. Be4 {[%emt 0:05:24]} Bg7 {[%emt 0:00:13]} 30. h6 {[%emt 0:00:46]} Bxh6 {[%emt 0:00:19]} 31. Rd1 {[%emt 0:01:33]} Ne2 {[%emt 0:01:00]} 32. Rh1 {[%emt 0:00:29]} Kg7 {[%emt 0:00:19]} 33. Nh5+ {[%emt 0:00:35]} Kf8 {[%emt 0:00:30]} 34. Nhf6 {[%emt 0:00:31]} Bg7 {[%emt 0:00:36]} 35. Nh7+ {[%emt 0:00:09]} Ke8 {[%emt 0:00:43]} 36. Nc7+ {[%emt 0:00:46]} Ke7 {[%emt 0:00:19]} 37. Nxe6 {[%emt 0:00:20]} fxe6 {[%emt 0:00:16]} 38. Nxg5 {[%emt 0:00:37]} Rd2 {[%emt 0:00:45]} 39. Kh3 {[%emt 0:00:36]} Rxb2 {[%emt 0:00:54]} 40. Kg4 {[%emt 0:00:00]} Rxa2 41. Rh7 {[%emt 0:01:14]} Kf6 {[%emt 0:02:53]} 42. Nxe6 {[%emt 0:02:39]} Kxe6 {[%emt 0:14:43]} 43. Rxg7 {[%emt 0:00:08]} Ra1 {[%emt 0:07:27]} 44. Ra7 {[%emt 0:04:54]} Nc3 {[%emt 0:04:12]} 45. Bd3 {[%emt 0:01:07]} a5 {[%emt 0:00:35]} 46. f4 {[%emt 0:00:42]} a4 {[%emt 0:00:50]} 47. f5+ {[%emt 0:01:00]} Ke5 {[%emt 0:00:23]} 48. Re7+ {[%emt 0:08:15]} Kf6 {[%emt 0:01:50]} 49. Re6+ {[%emt 0:00:04]} Kf7 {[%emt 0:00:04]} 50. Ra6 {[%emt 0:00:07]} a3 {[%emt 0:00:33]} 51. f6 {[%emt 0:01:25]} Rd1 {[%emt 0:02:37]} 52. Bc2 Rg1+ {[%emt 0:00:29]} 53. Kf5 {[%emt 0:01:13]} Rf1+ {[%emt 0:00:27]} 54. Ke5 {[%emt 0:00:08]} a2 {[%emt 0:00:36]} 55. Bb3+ {[%emt 0:05:02]} Kg6 {[%emt 0:00:29]} 56. Bxa2 {[%emt 0:01:34]} Nxa2 {[%emt 0:00:18]} 57. Rxa2 {[%emt 0:00:03]} Rf5+ {[%emt 0:00:09]} 58. Kd4 {[%emt 0:00:07]} Kxf6 {[%emt 0:00:06]} 59. Ra6+ {[%emt 0:00:22]} 1/2-1/2